[Event "Lviv Tradition June 2018"]
[Site "Lviv"]
[Date "2018.06.11"]
[Round "1"]
[White "Can, Isik"]
[Black "Shkuran, Danylo"]
[Result "1/2-1/2"]
[ECO "B41"]
[WhiteElo "2396"]
[BlackElo "2368"]
[Annotator "ChessBase"]
[PlyCount "69"]
[EventDate "2018.??.??"]
[EventType "schev"]
[EventCountry "UKR"]
[SourceTitle "playchess.com"]
[Source "ChessBase"]
[SourceQuality "1"]
[TimeControl "5400+30"]

1. e4 {[%emt 0:00:00]} c5 {[%emt 0:00:19]} 2. Nf3 {[%emt 0:00:00]} e6 {[%emt 0:00:04]} 3. d4 {[%emt 0:00:00]} cxd4 {[%emt 0:00:08]} 4. Nxd4 {[%emt 0:00:00]} a6 {[%emt 0:00:07]} 5. c4 {[%emt 0:00:00]} Nf6 {[%emt 0:00:56]} 6. Nc3 {[%emt 0:00:01]} Bb4 {[%emt 0:01:06]} 7. Qd3 {[%emt 0:00:06]} d5 {[%emt 0:02:44]} 8. exd5 {[%emt 0:00:19]} exd5 {[%emt 0:00:08]} 9. Be2 {[%emt 0:00:04]} O-O {[%emt 0:02:29]} 10. O-O {[%emt 0:00:06]} dxc4 {[%emt 0:12:05]} 11. Qxc4 {[%emt 0:00:02]} Bxc3 {[%emt 0:00:22]} 12. Qxc3 {[%emt 0:14:56]} Ne4 {[%emt 0:03:26]} 13. Qd3 {[%emt 0:13:33]} Re8 {[%emt 0:01:04]} 14. Bf3 {[%emt 0:02:24]} Bf5 {[%emt 0:04:38]} 15. Qd1 {[%emt 0:05:24]} Bg6 {[%emt 0:04:17]} 16. Be3 {[%emt 0:00:27]} Nd7 {[%emt 0:01:11]} 17. Qb3 {[%emt 0:02:50]} Ndc5 {[%emt 0:08:43]} 18. Qa3 {[%emt 0:00:23]} Ne6 {[%emt 0:27:08]} 19. Rfd1 {[%emt 0:13:17]} Qf6 {[%emt 0:03:44]} 20. Nxe6 {[%emt 0:16:03]} Qxe6 {[%emt 0:00:18]} 21. Rac1 {[%emt 0:01:21]} Rac8 {[%emt 0:01:20]} 22. Qa5 {[%emt 0:04:12]} h6 {[%emt 0:02:23]} 23. h3 {[%emt 0:03:00]} Kh7 {[%emt 0:05:28]} 24. b3 {[%emt 0:07:24]} Rxc1 {[%emt 0:05:50]} 25. Rxc1 {[%emt 0:00:18]} Rc8 {[%emt 0:00:05]} 26. Rxc8 {[%emt 0:05:20]} Qxc8 {[%emt 0:00:05]} 27. h4 {[%emt 0:03:00]} Nf6 {[%emt 0:03:59]} 28. Qb4 {[%emt 0:04:34]} Qc2 {[%emt 0:04:26]} 29. Qxb7 {[%emt 0:01:58]} Qxa2 {[%emt 0:00:15]} 30. Kh2 {[%emt 0:01:46]} h5 {[%emt 0:02:33]} 31. Bd4 {[%emt 0:01:32]} Qd2 {[%emt 0:01:30]} 32. Be3 {[%emt 0:00:18]} Qd6+ {[%emt 0:00:56]} 33. Kg1 {[%emt 0:00:16]} Ng4 {[%emt 0:00:18]} 34. Bxg4 {[%emt 0:01:21]} hxg4 {[%emt 0:00:05]} 35. Qb6 {[%emt 0:00:36]} 1/2-1/2

[Event "Lviv Tradition June 2018"]
[Site "Lviv"]
[Date "2018.06.11"]
[Round "1"]
[White "Ozenir, Ekin Baris"]
[Black "Frolov, Artur"]
[Result "1/2-1/2"]
[ECO "A45"]
[WhiteElo "2320"]
[BlackElo "2406"]
[Annotator "ChessBase"]
[PlyCount "49"]
[EventDate "2018.??.??"]
[EventType "schev"]
[EventCountry "UKR"]
[SourceTitle "playchess.com"]
[Source "ChessBase"]
[SourceQuality "1"]
[TimeControl "5400+30"]

1. d4 {[%emt 0:00:00]} Nf6 {[%emt 0:00:04]} 2. Bg5 {[%emt 0:00:05]} Ne4 {[%emt 0:00:26]} 3. Bf4 {[%emt 0:00:15]} c5 {[%emt 0:00:23]} 4. f3 {[%emt 0:00:26]} Qa5+ {[%emt 0:00:52]} 5. c3 {[%emt 0:00:27]} Nf6 {[%emt 0:00:21]} 6. d5 {[%emt 0:00:34]} d6 {[%emt 0:01:08]} 7. e4 {[%emt 0:00:46]} Nbd7 {[%emt 0:00:43]} 8. Na3 {[%emt 0:01:33]} g6 {[%emt 0:00:05]} 9. Nc4 {[%emt 0:01:16]} Qc7 {[%emt 0:00:03]} 10. a4 {[%emt 0:01:02]} Bg7 {[%emt 0:00:26]} 11. Qd2 {[%emt 0:01:00]} O-O {[%emt 0:00:31]} 12. Ne2 {[%emt 0:03:27]} Ne5 {[%emt 0:04:26]} 13. Ng3 {[%emt 0:07:57]} Bd7 {[%emt 0:07:18]} 14. Bg5 {[%emt 0:12:05]} Nxc4 {[%emt 0:21:20]} 15. Bxc4 {[%emt 0:00:09]} a6 {[%emt 0:00:03]} 16. h4 {[%emt 0:13:16]} b5 {[%emt 0:00:29]} 17. Be2 {[%emt 0:01:42]} h5 {[%emt 0:06:33]} 18. O-O {[%emt 0:08:25]} bxa4 {[%emt 0:04:37]} 19. f4 {[%emt 0:08:41]} Nh7 {[%emt 0:04:06]} 20. f5 {[%emt 0:04:39]} Nxg5 {[%emt 0:06:49]} 21. Qxg5 {[%emt 0:10:38]} Bf6 {[%emt 0:01:08]} 22. Qh6 {[%emt 0:01:09]} Bg7 {[%emt 0:00:15]} 23. Qg5 {[%emt 0:00:30]} Bf6 {[%emt 0:12:28]} 24. Qh6 {[%emt 0:00:15]} Bg7 {[%emt 0:00:06]} 25. Qg5 {[%emt 0:00:20]} 1/2-1/2

[Event "Lviv Tradition June 2018"]
[Site "Lviv"]
[Date "2018.06.11"]
[Round "1"]
[White "Tanriverdi, Enes"]
[Black "Anwesh, Upadhyaya"]
[Result "1/2-1/2"]
[ECO "D45"]
[WhiteElo "2281"]
[BlackElo "2375"]
[Annotator "NA"]
[PlyCount "64"]
[EventDate "2018.??.??"]
[EventType "schev"]
[EventCountry "UKR"]
[SourceTitle "playchess.com"]
[Source "ChessBase"]
[SourceQuality "1"]
[TimeControl "5400+30"]

1. d4 {[%emt 0:00:00]} Nf6 {[%emt 0:01:06]} 2. c4 {[%emt 0:00:00]} e6 {[%emt 0:00:05]} 3. Nf3 {[%emt 0:00:00]} d5 {[%emt 0:00:53]} 4. Nc3 {[%emt 0:00:00]} c6 {[%emt 0:00:22]} 5. e3 {[%emt 0:00:00]} Nbd7 {[%emt 0:00:03]} 6. Qc2 {[%emt 0:00:04]} Bd6 {[%emt 0:00:04]} 7. Be2 {[%emt 0:00:06]} O-O {[%emt 0:00:06]} 8. O-O {[%emt 0:00:05]} dxc4 {[%emt 0:00:42]} 9. Bxc4 {[%emt 0:00:06]} a6 {[%emt 0:00:13]} 10. e4 {[%emt 0:04:49]} e5 {[%emt 0:00:35]} 11. Rd1 {[%emt 0:00:51] D46: Semi-Slav: 5 e3 Nbd7 6 Bd3, Black avoids the Meran} Qe7 {[%emt 0:00:31]} 12. h3 {[%emt 0:01:59]} b5 {[%emt 0:02:42]} 13. Bb3 $146 {[%emt 0:00:56]} ({Predecessor:} 13. Bf1 Re8 14. Be3 Bb7 15. a3 exd4 16. Nxd4 Be5 17. Nf5 Qe6 18. f3 c5 19. Qf2 {1-0 (45) Schmidt,W (2370)-Mastrovasilis,D (2610) Poland 2013}) 13... Bb7 {[%emt 0:14:46]} 14. Bg5 {[%emt 0:20:52]} Rfe8 {[%emt 0:20:06]} 15. dxe5 {[%emt 0:13:23]} Nxe5 {[%emt 0:01:33]} 16. Nd4 {[%emt 0:00:16]} Bc5 {[%emt 0:01:53]} 17. Nf5 {[%emt 0:01:03]} Qf8 {[%emt 0:00:20]} 18. Kh1 {[%emt 0:05:14]} Bc8 {[%emt 0:03:56]} 19. f4 {[%emt 0:02:47]} Bxf5 {[%emt 0:01:34]} 20. exf5 {[%emt 0:24:12]} Ned7 {[%emt 0:00:19]} 21. Ne4 {[%emt 0:04:10]} Rxe4 {[%emt 0:10:32] [#]} 22. Rxd7 $1 {[%emt 0:00:15]} Rc4 {[%emt 0:00:13]} 23. Bxc4 {[%emt 0:04:02]} Nxd7 {[%emt 0:00:02]} 24. Rd1 {[%emt 0:01:22]} bxc4 {[%emt 0:14:09]} 25. Rxd7 {[%emt 0:00:06]} Qe8 {[%emt 0:02:09]} 26. Rd1 {[%emt 0:01:39]} Qe3 {[%emt 0:01:36]} ({Black should play} 26... Rb8 $14) 27. Qxc4 {[%emt 0:02:07]} h6 {[%emt 0:00:32]} 28. Bh4 {[%emt 0:00:25]} Ba7 $16 {[%emt 0:01:43]} 29. Qc1 {[%emt 0:05:20]} Rb8 {[%emt 0:01:35]} 30. Qxe3 {[%emt 0:02:09]} Bxe3 {[%emt 0:00:04]} 31. Rd8+ {[%emt 0:00:31]} Rxd8 {[%emt 0:00:06]} 32. Bxd8 {[%emt 0:00:02]} Bxf4 {[%emt 0:00:25]} 1/2-1/2

[Event "Lviv Tradition June 2018"]
[Site "Lviv"]
[Date "2018.06.12"]
[Round "3"]
[White "Can, Isik"]
[Black "Sabuk, Piotr"]
[Result "1/2-1/2"]
[ECO "B94"]
[WhiteElo "2396"]
[BlackElo "2369"]
[Annotator "NA"]
[PlyCount "42"]
[EventDate "2018.??.??"]
[EventType "schev"]
[EventCountry "UKR"]
[SourceTitle "playchess.com"]
[Source "ChessBase"]
[SourceQuality "1"]
[TimeControl "5400+30"]

1. e4 {[%emt 0:00:24]} c5 {[%emt 0:00:07]} 2. Nf3 {[%emt 0:00:06]} d6 {[%emt 0:00:10]} 3. d4 {[%emt 0:00:05]} cxd4 {[%emt 0:00:05]} 4. Nxd4 {[%emt 0:00:03]} Nf6 {[%emt 0:00:20]} 5. Nc3 {[%emt 0:00:05]} a6 {[%emt 0:00:12]} 6. Bg5 {[%emt 0:00:14]} Nbd7 {[%emt 0:00:34]} 7. f4 {[%emt 0:00:06]} Qc7 {[%emt 0:00:49]} 8. Qf3 {[%emt 0:00:26]} h6 {[%emt 0:00:55]} 9. Bxf6 {[%emt 0:00:04]} Nxf6 {[%emt 0:00:13]} 10. f5 {[%emt 0:00:24]} Qc5 {[%emt 0:00:56]} 11. O-O-O {[%emt 0:00:13]} g5 {[%emt 0:00:32]} 12. fxg6 {[%emt 0:04:41]} Bg4 {[%emt 0:01:33]} 13. gxf7+ {[%emt 0:00:17]} Kxf7 {[%emt 0:00:16]} 14. Qd3 {[%emt 0:01:08]} Bxd1 {[%emt 0:00:07]} 15. Nxd1 {[%emt 0:00:33]} Bg7 {[%emt 0:00:05]} 16. Be2 {[%emt 0:19:34]} e6 {[%emt 0:02:30]} 17. Ne3 {[%emt 0:03:59]} Rhe8 {[%emt 0:03:05]} 18. Nb3 {[%emt 0:12:06]} Qc7 {[%emt 0:03:07]} 19. Nd4 {[%emt 0:16:32]} Qc5 {[%emt 0:28:31]} 20. Nb3 {[%emt 0:00:22]} Qc7 {[%emt 0:03:31]} 21. Nd4 {[%emt 0:01:13]} Qc5 1/2-1/2

[Event "Lviv Tradition June 2018"]
[Site "Lviv"]
[Date "2018.06.12"]
[Round "3"]
[White "Tanriverdi, Enes"]
[Black "Shkuran, Danylo"]
[Result "1/2-1/2"]
[ECO "D11"]
[WhiteElo "2281"]
[BlackElo "2368"]
[Annotator "NA"]
[PlyCount "62"]
[EventDate "2018.??.??"]
[EventType "schev"]
[EventCountry "UKR"]
[SourceTitle "playchess.com"]
[Source "ChessBase"]
[SourceQuality "1"]
[TimeControl "5400+30"]

1. d4 {[%emt 0:00:00]} d5 {[%emt 0:00:09]} 2. c4 {[%emt 0:00:00]} c6 {[%emt 0:00:03]} 3. Nf3 {[%emt 0:00:00]} Nf6 4. e3 {[%emt 0:00:01]} e6 {[%emt 0:00:18]} 5. Bd3 {[%emt 0:00:07]} Be7 {[%emt 0:00:11]} 6. O-O {[%emt 0:00:24]} O-O {[%emt 0:00:12]} 7. Nbd2 {[%emt 0:01:13]} Nbd7 {[%emt 0:00:58]} 8. b3 {[%emt 0:00:49]} b6 {[%emt 0:01:30]} 9. Bb2 {[%emt 0:00:07]} Bb7 {[%emt 0:00:23]} 10. Ne5 {[%emt 0:01:27] D30: Queen's Gambit Declined: Systems without Nc3} (10. Qe2 Rc8 11. Ne5 c5 12. f4 Ne4 13. Bxe4 dxe4 14. Rad1 cxd4 15. Nxe4 Nxe5 16. fxe5 Bxe4 17. Rxd4 Bd5 18. cxd5 Bc5 19. Rd3 exd5 20. Qf3 {1-0 (38) Eljanov,P (2760)-Van Wely,L (2640) Wijk aan Zee 2016}) 10... dxc4 {[%emt 0:03:13]} 11. Ndxc4 {[%emt 0:01:10]} c5 {[%emt 0:12:56]} 12. Nxd7 {[%emt 0:04:10]} Qxd7 {[%emt 0:03:20]} 13. Qe2 {[%emt 0:07:55]} Qd5 $146 {[%emt 0:05:37]} ({Predecessor:} 13... cxd4 14. Bxd4 Qd5 15. f3 Qh5 16. Rad1 Rfd8 17. Bb1 Ba6 {1-0 (46) Heidel,A (2163)-Redzepovic,I (2139) Bayern 2014}) 14. f3 {[%emt 0:01:31]} Qg5 {[%emt 0:01:15]} 15. Rad1 {[%emt 0:12:05]} Rfd8 {[%emt 0:04:31]} 16. Ne5 {[%emt 0:27:57]} Bd6 {[%emt 0:01:59]} 17. f4 {[%emt 0:04:46]} Qh5 {[%emt 0:10:55]} 18. Qxh5 {[%emt 0:07:09]} Nxh5 {[%emt 0:00:07]} 19. f5 {[%emt 0:01:44]} Bxe5 {[%emt 0:14:15]} 20. dxe5 {[%emt 0:00:29]} exf5 {[%emt 0:00:35]} 21. Bxf5 {[%emt 0:01:22]} g6 {[%emt 0:04:03]} 22. Bd7 {[%emt 0:01:09]} Ba6 {[%emt 0:05:05]} 23. Rf2 {[%emt 0:03:24]} Ng7 {[%emt 0:00:38]} 24. Rfd2 {[%emt 0:01:05]} Kf8 {[%emt 0:04:18]} 25. e6 {[%emt 0:01:44]} Nxe6 {[%emt 0:03:34]} 26. Bf6 {[%emt 0:00:08]} Rdb8 {[%emt 0:01:04] [#]} 27. Be5 $1 {[%emt 0:05:24]} Rd8 {[%emt 0:00:14] [#]} 28. Bd6+ {[%emt 0:00:59]} (28. Rd5 $1 $16) 28... Kg8 {[%emt 0:01:01]} 29. Be7 {[%emt 0:00:49]} Rdb8 {[%emt 0:00:05]} 30. Bd6 {[%emt 0:05:46]} Rd8 {[%emt 0:00:10]} 31. Be7 {[%emt 0:00:04]} Rdb8 $11 {[%emt 0:00:05]} 1/2-1/2

[Event "Lviv Tradition June 2018"]
[Site "Lviv"]
[Date "2018.06.12"]
[Round "3"]
[White "Akdogan, Alperen"]
[Black "Frolov, Artur"]
[Result "1-0"]
[ECO "A48"]
[WhiteElo "2260"]
[BlackElo "2406"]
[Annotator "ChessBase"]
[PlyCount "69"]
[EventDate "2018.??.??"]
[EventType "schev"]
[EventCountry "UKR"]
[SourceTitle "playchess.com"]
[Source "ChessBase"]
[SourceQuality "1"]
[TimeControl "5400+30"]

1. d4 {[%emt 0:00:00]} Nf6 {[%emt 0:00:04]} 2. Nf3 g6 {[%emt 0:00:37]} 3. c4 {[%emt 0:00:00]} Bg7 {[%emt 0:00:04]} 4. Nc3 {[%emt 0:00:06]} O-O {[%emt 0:00:05]} 5. e4 {[%emt 0:00:05]} d6 {[%emt 0:00:03]} 6. h3 {[%emt 0:00:15]} e5 {[%emt 0:00:37]} 7. d5 {[%emt 0:00:08]} c5 {[%emt 0:02:36]} 8. Be2 {[%emt 0:02:13]} Na6 {[%emt 0:00:27]} 9. Be3 {[%emt 0:01:03]} Nh5 {[%emt 0:03:14]} 10. g3 {[%emt 0:13:17]} f5 {[%emt 0:01:56]} 11. exf5 {[%emt 0:00:40]} gxf5 {[%emt 0:00:08]} 12. Nd2 {[%emt 0:00:15]} f4 {[%emt 0:11:58]} 13. Bxh5 {[%emt 0:00:22]} fxe3 {[%emt 0:00:05]} 14. fxe3 {[%emt 0:00:06]} Qg5 {[%emt 0:00:05]} 15. Nde4 {[%emt 0:00:47]} Qxe3+ {[%emt 0:00:20]} 16. Qe2 {[%emt 0:00:09]} Qh6 {[%emt 0:00:26]} 17. a3 {[%emt 0:06:53]} Bf5 {[%emt 0:18:15]} 18. Bg4 {[%emt 0:09:23]} Bxe4 {[%emt 0:05:27]} 19. Nxe4 {[%emt 0:00:21]} Nc7 {[%emt 0:00:10]} 20. h4 {[%emt 0:20:32]} a6 {[%emt 0:13:48]} 21. Bf3 {[%emt 0:02:30]} b5 {[%emt 0:00:56]} 22. b3 {[%emt 0:00:13]} bxc4 {[%emt 0:00:27]} 23. bxc4 {[%emt 0:00:07]} Rab8 {[%emt 0:00:57]} 24. O-O {[%emt 0:00:11]} Rb3 {[%emt 0:01:25]} 25. Bg2 {[%emt 0:01:16]} Ne8 {[%emt 0:12:48]} 26. Rxf8+ {[%emt 0:01:32]} Bxf8 {[%emt 0:00:07]} 27. Qg4+ {[%emt 0:06:41]} Qg6 {[%emt 0:00:11]} 28. Qc8 {[%emt 0:01:51]} Rb2 {[%emt 0:03:50]} 29. Rf1 {[%emt 0:03:31]} Rxg2+ {[%emt 0:00:22]} 30. Kxg2 {[%emt 0:00:04]} Qxe4+ {[%emt 0:00:04]} 31. Kh3 {[%emt 0:00:13]} Qg6 {[%emt 0:09:29]} 32. Rf5 {[%emt 0:00:14]} Bh6 {[%emt 0:06:43]} 33. h5 {[%emt 0:00:28]} Qxf5+ {[%emt 0:00:04]} 34. Qxf5 {[%emt 0:00:06]} Bd2 {[%emt 0:00:17]} 35. Qd7 {[%emt 0:00:47]} 1-0

[Event "Lviv Tradition June 2018"]
[Site "Lviv"]
[Date "2018.06.13"]
[Round "4"]
[White "Frolov, Artur"]
[Black "Tanriverdi, Enes"]
[Result "0-1"]
[ECO "B40"]
[WhiteElo "2406"]
[BlackElo "2281"]
[Annotator "NA"]
[PlyCount "80"]
[EventDate "2018.??.??"]
[EventType "schev"]
[EventCountry "UKR"]
[SourceTitle "playchess.com"]
[Source "ChessBase"]
[SourceQuality "1"]
[TimeControl "5400+30"]

1. e4 {[%emt 0:00:00]} c5 {[%emt 0:00:08]} 2. Nf3 {[%emt 0:00:00]} e6 {[%emt 0:00:03]} 3. c4 {[%emt 0:00:10]} Nc6 {[%emt 0:00:25]} 4. Nc3 {[%emt 0:00:05]} Nf6 {[%emt 0:01:44]} 5. d3 {[%emt 0:05:24]} d6 {[%emt 0:01:15]} 6. g3 {[%emt 0:00:21]} Be7 {[%emt 0:00:54]} 7. Bg2 {[%emt 0:00:13]} O-O {[%emt 0:00:06]} 8. O-O {[%emt 0:00:44]} a6 {[%emt 0:06:07]} 9. d4 {[%emt 0:06:34]} cxd4 {[%emt 0:01:25] LiveBook: 8 Games} 10. Nxd4 $14 {[%emt 0:00:01]} Bd7 {[%emt 0:00:35]} 11. b3 {[%emt 0:00:54]} Nxd4 {[%emt 0:15:38]} 12. Qxd4 {[%emt 0:00:03]} Bc6 {[%emt 0:03:54]} 13. Bb2 {[%emt 0:00:29]} b5 {[%emt 0:00:45]} 14. Rfd1 {[%emt 0:01:29]} b4 {[%emt 0:04:10]} 15. Ne2 {[%emt 0:00:18]} e5 {[%emt 0:00:20]} 16. Qd3 {[%emt 0:02:35]} Nd7 {[%emt 0:03:38]} 17. Qe3 {[%emt 0:11:51]} Qc7 {[%emt 0:01:04]} 18. g4 {[%emt 0:00:07]} Nc5 {[%emt 0:12:20]} 19. Ng3 {[%emt 0:00:53]} Ne6 {[%emt 0:03:17]} 20. Nf5 {[%emt 0:03:01]} a5 {[%emt 0:07:00]} 21. Qd3 {[%emt 0:14:20]} Rfd8 {[%emt 0:04:17]} 22. Bc1 {[%emt 0:08:27]} a4 {[%emt 0:14:07]} 23. Bd2 Rab8 24. h4 {[%emt 0:12:45]} g6 {[%emt 0:06:36]} 25. Nxe7+ {[%emt 0:08:31]} Qxe7 {[%emt 0:00:03]} 26. Qg3 {[%emt 0:03:26]} Nd4 {[%emt 0:00:26]} 27. Kf1 {[%emt 0:00:28]} Ra8 {[%emt 0:04:01]} 28. g5 {[%emt 0:07:15]} axb3 {[%emt 0:01:06]} 29. axb3 {[%emt 0:00:01]} Ra3 {[%emt 0:00:16]} 30. Rxa3 {[%emt 0:07:39]} bxa3 {[%emt 0:00:01]} 31. Ba5 {[%emt 0:00:04]} Rc8 {[%emt 0:01:43]} 32. Bb6 {[%emt 0:03:07]} Qb7 {[%emt 0:01:23]} 33. Bxd4 {[%emt 0:00:49]} exd4 {[%emt 0:00:01]} 34. Ra1 {[%emt 0:01:51]} Qb4 {[%emt 0:01:54]} 35. Qd3 {[%emt 0:00:38]} Rb8 {[%emt 0:01:01]} 36. Bf3 {[%emt 0:00:02]} Qc3 {[%emt 0:01:08]} 37. Qxc3 {[%emt 0:01:48]} dxc3 {[%emt 0:00:01]} 38. Ke2 {[%emt 0:01:57]} Rxb3 {[%emt 0:00:05]} 39. Bh1 {[%emt 0:00:37]} c2 {[%emt 0:01:22]} 40. Rc1 {[%emt 0:00:07]} a2 {[%emt 0:00:04]} 0-1

[Event "Lviv Tradition June 2018"]
[Site "Lviv"]
[Date "2018.06.13"]
[Round "4"]
[White "Sabuk, Piotr"]
[Black "Akdogan, Alperen"]
[Result "1-0"]
[ECO "A04"]
[WhiteElo "2369"]
[BlackElo "2260"]
[Annotator "NA"]
[PlyCount "57"]
[EventDate "2018.??.??"]
[EventType "schev"]
[EventCountry "UKR"]
[SourceTitle "playchess.com"]
[Source "ChessBase"]
[SourceQuality "1"]
[TimeControl "5400+30"]

1. Nf3 {[%emt 0:00:00]} f5 {[%emt 0:01:29]} 2. d3 {[%emt 0:00:00]} Nf6 {[%emt 0:00:12]} 3. e4 {[%emt 0:00:30]} d6 {[%emt 0:01:15]} 4. Nc3 {[%emt 0:20:54]} e6 {[%emt 0:03:22]} 5. exf5 {[%emt 0:04:15]} exf5 {[%emt 0:00:09]} 6. d4 {[%emt 0:03:05]} Be7 {[%emt 0:00:57]} 7. Bc4 {[%emt 0:04:46]} d5 {[%emt 0:02:05]} 8. Bb3 {[%emt 0:00:39]} O-O {[%emt 0:00:37]} 9. O-O {[%emt 0:02:26]} c6 {[%emt 0:02:06]} 10. Ne2 {[%emt 0:01:56]} Na6 {[%emt 0:04:02]} 11. h4 {[%emt 0:13:28]} Nc7 {[%emt 0:05:50]} 12. g3 {[%emt 0:05:56]} Bd6 {[%emt 0:28:31]} 13. Nf4 {[%emt 0:02:43]} Ne6 {[%emt 0:06:46]} 14. Ne5 {[%emt 0:00:50]} Qc7 {[%emt 0:02:32]} 15. c4 {[%emt 0:06:19]} Nxd4 {[%emt 0:05:56]} 16. Qxd4 {[%emt 0:08:10]} Bxe5 {[%emt 0:00:07]} 17. Qd1 d4 {[%emt 0:06:46]} 18. c5+ {[%emt 0:03:49]} Kh8 19. Qf3 Bd7 {[%emt 0:04:27]} 20. h5 {[%emt 0:04:01]} Be8 {[%emt 0:11:35]} 21. h6 {[%emt 0:03:46]} g6 {[%emt 0:05:53]} 22. Ne6 {[%emt 0:00:58]} Qe7 {[%emt 0:00:07]} 23. Re1 {[%emt 0:03:05]} Ng4 {[%emt 0:04:27]} 24. Bg5 {[%emt 0:03:26]} Bf6 {[%emt 0:02:05]} 25. Bf4 {[%emt 0:01:38]} Rf7 {[%emt 0:01:06]} 26. Ng5 {[%emt 0:02:23]} Ne5 {[%emt 0:00:36]} 27. Rxe5 {[%emt 0:02:50]} Bxe5 {[%emt 0:00:20]} 28. Re1 {[%emt 0:00:29]} Bf6 {[%emt 0:00:38]} 29. Nxf7+ {[%emt 0:00:22]} 1-0

[Event "Lviv Tradition June 2018"]
[Site "Lviv"]
[Date "2018.06.13"]
[Round "4"]
[White "Shkuran, Danylo"]
[Black "Dedebas, Emre Emin"]
[Result "1-0"]
[ECO "A07"]
[WhiteElo "2368"]
[BlackElo "2336"]
[Annotator "NA"]
[PlyCount "123"]
[EventDate "2018.??.??"]
[EventType "schev"]
[EventCountry "UKR"]
[SourceTitle "playchess.com"]
[Source "ChessBase"]
[SourceQuality "1"]
[TimeControl "5400+30"]

1. Nf3 {[%emt 0:00:00]} Nf6 {[%emt 0:00:11]} 2. g3 {[%emt 0:00:00]} d5 {[%emt 0:00:04]} 3. Bg2 {[%emt 0:00:00]} c6 {[%emt 0:00:05]} 4. O-O {[%emt 0:00:04]} Bg4 {[%emt 0:00:05]} 5. d4 {[%emt 0:00:23]} Nbd7 {[%emt 0:00:17]} 6. Nbd2 {[%emt 0:00:54]} e6 {[%emt 0:00:17]} 7. Re1 {[%emt 0:00:16]} Be7 {[%emt 0:00:06]} 8. e4 {[%emt 0:00:38]} dxe4 {[%emt 0:00:18]} 9. Nxe4 {[%emt 0:00:05]} O-O {[%emt 0:00:11]} 10. Nxf6+ {[%emt 0:02:39]} Bxf6 {[%emt 0:03:19]} 11. h3 {[%emt 0:09:03]} Bxf3 {[%emt 0:08:14]} 12. Bxf3 {[%emt 0:18:53]} Bg5 {[%emt 0:00:09]} 13. Bxg5 {[%emt 0:02:13]} Qxg5 {[%emt 0:00:07]} 14. c3 {[%emt 0:00:09]} a5 {[%emt 0:01:45]} 15. Qb3 {[%emt 0:00:39]} Rab8 {[%emt 0:00:25]} 16. Rad1 {[%emt 0:02:29]} Rfe8 {[%emt 0:00:37]} 17. c4 {[%emt 0:01:30]} Qf6 {[%emt 0:16:26]} 18. Bg2 {[%emt 0:11:09]} Rec8 {[%emt 0:16:00]} 19. Re2 {[%emt 0:09:06]} Qd8 {[%emt 0:11:52]} 20. d5 {[%emt 0:11:31]} Nc5 {[%emt 0:00:09]} 21. Qe3 {[%emt 0:00:26]} Qd6 {[%emt 0:01:13]} 22. Rdd2 {[%emt 0:02:31]} cxd5 {[%emt 0:10:47]} 23. cxd5 {[%emt 0:00:08]} exd5 {[%emt 0:00:32]} 24. Bxd5 {[%emt 0:02:49]} Qf8 {[%emt 0:00:12]} 25. Qf3 {[%emt 0:09:01]} Rc7 {[%emt 0:01:22]} 26. Rd4 {[%emt 0:03:54]} Rd8 {[%emt 0:12:54]} 27. Rf4 {[%emt 0:00:25]} Rdd7 {[%emt 0:00:12]} 28. Re5 {[%emt 0:09:30]} g6 {[%emt 0:13:08]} 29. Qe3 {[%emt 0:02:47]} Rd8 {[%emt 0:00:13]} 30. Bxf7+ {[%emt 0:01:15]} Rxf7 {[%emt 0:00:08]} 31. Rxf7 {[%emt 0:00:35]} Qxf7 {[%emt 0:00:06]} 32. Rxc5 {[%emt 0:00:27]} b6 {[%emt 0:02:23]} 33. Rc1 {[%emt 0:00:28]} Qxa2 {[%emt 0:01:41]} 34. Qxb6 {[%emt 0:00:29]} Qd5 {[%emt 0:00:18]} 35. Qa7 {[%emt 0:00:31]} Rd7 {[%emt 0:00:24]} 36. Qb8+ {[%emt 0:00:30]} Kg7 {[%emt 0:00:08]} 37. h4 {[%emt 0:00:16]} Qh5 {[%emt 0:02:10]} 38. Rc8 {[%emt 0:00:44]} Qd1+ {[%emt 0:00:30]} 39. Kh2 {[%emt 0:00:25]} Qd5 {[%emt 0:00:09]} 40. Rf8 {[%emt 0:00:36]} Rf7 {[%emt 0:00:51]} 41. Rxf7+ {[%emt 0:00:21]} Qxf7 {[%emt 0:00:22]} 42. Qe5+ {[%emt 0:00:08]} Kg8 {[%emt 0:00:11]} 43. Kg1 {[%emt 0:00:38]} Qa7 {[%emt 0:00:57]} 44. h5 {[%emt 0:00:22]} gxh5 {[%emt 0:00:31]} 45. Qg5+ {[%emt 0:00:15]} Kh8 {[%emt 0:00:17]} 46. Qxh5 {[%emt 0:00:25]} Qd4 {[%emt 0:00:19]} 47. Qf7 {[%emt 0:00:20]} Qc5 {[%emt 0:00:32]} 48. Kg2 {[%emt 0:00:51]} Qc6+ {[%emt 0:00:49]} 49. f3 {[%emt 0:00:43]} h6 {[%emt 0:00:23]} 50. Kh3 {[%emt 0:00:49]} Qb5 {[%emt 0:00:39]} 51. Qg6 {[%emt 0:00:33]} Qxb2 {[%emt 0:00:31]} 52. Qxh6+ Kg8 53. Qg5+ {[%emt 0:00:16]} Kf7 {[%emt 0:01:00]} 54. Qxa5 {[%emt 0:00:56]} Qf2 {[%emt 0:00:30]} 55. Qd5+ {[%emt 0:00:13]} Kf6 {[%emt 0:00:09]} 56. Kg4 {[%emt 0:00:08]} Qc2 {[%emt 0:00:24]} 57. Qd4+ {[%emt 0:00:27]} Kf7 {[%emt 0:00:01]} 58. Qf4+ {[%emt 0:00:10]} Kg8 {[%emt 0:00:27]} 59. Qg5+ {[%emt 0:00:31]} Kh8 {[%emt 0:00:00]} 60. Kh5 {[%emt 0:00:30]} Qc3 {[%emt 0:01:09]} 61. f4 {[%emt 0:01:17]} Qc6 {[%emt 0:00:43]} 62. Qh6+ {[%emt 0:00:10]} 1-0